fUSD/lending_fUSD_20250107
["ID","MTS","AMOUNT","RATE_DAILY","PERIOD"]
[347979123,1736259051588,-500.0,0.00010246,2]
[347979124,1736259051597,-98.95115955,0.00010246,2]
[347979125,1736259051608,-383.57266039,0.00010246,2]
[347979126,1736259051620,-17.47618006,0.00010246,2]
[347979127,1736259051629,-500.0,0.00010246,2]
[347979128,1736259051638,-500.0,0.00010246,2]
[347979129,1736259051648,-500.0,0.00010246,2]
[347979130,1736259051657,-500.0,0.00010246,2]
[347979131,1736259051666,-500.0,0.00010246,2]
[347979132,1736259051675,-3102.52681888,0.00010246,2]
[347979133,1736259051687,-294.0,0.00010246,2]
[347979134,1736259051702,-96.16318112,0.00010246,2]
[347979135,1736259051712,-500.0,0.00010246,2]
[347979136,1736259051721,-255.49891083,0.00010246,2]
[347979137,1736259051733,-244.50108917,0.00010246,2]
[347979138,1736259051742,-500.0,0.00010246,2]
[347979139,1736259051751,-500.0,0.00010246,2]
[347979140,1736259051760,-500.0,0.00010246,2]
[347979141,1736259051770,-500.0,0.00010246,2]
[347979142,1736259051779,-500.0,0.00010246,2]
[347979143,1736259051788,-500.0,0.00010246,2]
[347979144,1736259051797,-500.0,0.00010246,2]
[347979145,1736259051807,-2173.25,0.00010246,2]
[347979146,1736259051816,-500.0,0.00010246,2]
[347979147,1736259051825,-500.0,0.00010246,2]
[347979148,1736259051840,-500.0,0.00010246,2]
[347979149,1736259051849,-500.0,0.00010246,2]
[347979150,1736259051858,-500.0,0.00010246,2]
[347979151,1736259051868,-500.0,0.00010246,2]
[347979152,1736259051877,-2901.64636266,0.00010246,2]
[347979153,1736259051888,-980.11363734,0.00010246,2]
[347979154,1736259051898,-500.0,0.00010246,2]
[347979155,1736259051907,-219.57287667,0.00010246,2]
[347979156,1736259051918,-331.07,0.00010246,2]
[347979157,1736259051929,-145.53712333,0.00010246,2]
[347979158,1736259051938,-510.19349544,0.00010246,2]
[347979159,1736259051947,-2309.11045135,0.00010246,2]
[347979160,1736259051958,-1484.44954865,0.00010246,2]
[347979161,1736259051967,-246.39641135,0.00010246,2]
[347979162,1736259051993,-677.53,9.969e-05,2]
[347979163,1736259052002,-253.60358865,0.00010246,2]
[347979164,1736259052011,-415.86641135,0.00010246,2]
[347979165,1736259052022,-84.13358865,0.00010246,2]
[347979166,1736259052031,-500.0,0.00010246,2]
[347979167,1736259052040,-500.0,0.00010246,2]
[347979168,1736259052049,-500.0,0.00010246,2]
[347979169,1736259052059,-634.72,0.00010246,2]
[347979170,1736259052068,-500.0,0.00010246,2]
[347979171,1736259052077,-500.0,0.00010246,2]
[347979172,1736259052091,-739.72,0.00010246,2]
[347979173,1736259052101,-500.0,0.00010246,2]
[347979174,1736259052111,-500.0,0.00010246,2]
[347979175,1736259052120,-500.0,0.00010246,2]
[347979176,1736259052129,-500.0,0.00010246,2]
[347979177,1736259052139,-500.0,0.00010246,2]
[347979178,1736259052149,-500.0,0.00010246,2]
[347979179,1736259052159,-642.82,0.00010246,2]
[347979180,1736259052169,-500.0,0.00010246,2]
[347979181,1736259052179,-500.0,0.00010246,2]
[347979182,1736259052188,-500.0,0.00010246,2]
[347979183,1736259052198,-530.31,0.00010246,2]
[347979184,1736259052208,-500.0,0.00010246,2]
[347979185,1736259052217,-504.08,0.00010246,2]
[347979186,1736259052227,-2071.93,0.00010246,2]
[347979187,1736259052236,-500.0,0.00010246,2]
[347979188,1736259052246,-581.98,0.00010246,2]
[347979189,1736259052255,-500.0,0.00010246,2]
[347979190,1736259052264,-649.91,0.00010246,2]
[347979191,1736259052274,-500.0,0.00010246,2]
[347979192,1736259052283,-500.0,0.00010246,2]
[347979193,1736259052292,-500.0,0.00010246,2]
[347979194,1736259052301,-500.0,0.00010246,2]
[347979195,1736259052311,-500.0,0.00010246,2]
[347979196,1736259052320,-1078.63,0.00010246,2]
[347979197,1736259052329,-5125.92,0.00010246,2]
[347979198,1736259052347,-500.0,0.00010246,2]
[347979199,1736259052357,-500.0,0.00010246,2]
[347979200,1736259052366,-716.49,0.00010246,2]
[347979201,1736259052376,-500.0,0.00010246,2]
[347979202,1736259052386,-500.0,0.00010246,2]
[347979203,1736259052395,-543.72,0.00010246,2]
[347979204,1736259052405,-500.0,0.00010246,2]
[347979205,1736259052414,-854.65,0.00010246,2]
[347979206,1736259052425,-500.0,0.00010246,2]
[347979207,1736259052434,-500.0,0.00010246,2]
[347979208,1736259052444,-708.16,0.00010246,2]
[347979209,1736259052453,-692.54,0.00010246,2]
[347979210,1736259052462,-500.0,0.00010246,2]
[347979211,1736259052471,-500.0,0.00010246,2]
[347979212,1736259052481,-807.8,0.00010246,2]
[347979213,1736259052489,-500.0,0.00010246,2]
[347979214,1736259052499,-500.0,0.00010246,2]
[347979215,1736259052508,-658.15,0.00010246,2]
[347979216,1736259052518,-500.0,0.00010246,2]
[347979217,1736259052527,-500.0,0.00010246,2]
[347979218,1736259052536,-500.0,0.00010246,2]
[347979219,1736259052546,-500.0,0.00010246,2]
[347979220,1736259052555,-500.0,0.00010246,2]
[347979221,1736259052564,-500.0,0.00010246,2]
[347979222,1736259052574,-500.0,0.00010246,2]
[347979223,1736259052589,-2981.4,0.00010246,2]
[347979224,1736259052600,-500.0,0.00010246,2]
[347979225,1736259052609,-500.0,0.00010246,2]
[347979226,1736259052619,-606.03,0.00010246,2]
[347979227,1736259052627,-500.0,0.00010246,2]
[347979228,1736259052637,-500.0,0.00010246,2]
[347979229,1736259052646,-500.0,0.00010246,2]
[347979230,1736259052655,-500.0,0.00010246,2]
[347979231,1736259052664,-500.0,0.00010246,2]
[347979232,1736259052673,-416.3069523,0.00010246,2]
[347979233,1736259052683,-500.0,0.00010246,2]
[347979234,1736259052692,-822.93,0.00010246,2]
[347979235,1736259052701,-500.0,0.00010246,2]
[347979236,1736259052711,-500.0,0.00010246,2]
[347979237,1736259052720,-529.41,0.00010246,2]
[347979238,1736259052729,-500.0,0.00010246,2]
[347979239,1736259052739,-500.0,0.00010246,2]
[347979240,1736259052748,-911.13,0.00010246,2]
[347979241,1736259052757,-500.0,0.00010246,2]
[347979242,1736259052766,-1142.1,0.00010246,2]
[347979243,1736259052776,-533.3109272,0.00010246,2]
[347979244,1736259052786,-500.0,0.00010246,2]
[347979245,1736259052795,-573.6265733,0.00010246,2]
[347979246,1736259052804,-500.0,0.00010246,2]
[347979247,1736259052813,-562.48580831,0.00010246,2]
[347979248,1736259052822,-500.0,0.00010246,2]
[347979249,1736259052832,-500.0,0.00010246,2]
[347979250,1736259052846,-1113.35,0.00010246,2]
[347979251,1736259052855,-732.89,0.00010246,2]
[347979252,1736259052864,-500.0,0.00010246,2]
[347979253,1736259052874,-500.0,0.00010246,2]
[347979254,1736259052883,-500.0,0.00010246,2]
[347979255,1736259052892,-500.0,0.00010246,2]
[347979256,1736259052901,-500.0,0.00010246,2]
[347979257,1736259052911,-500.0,0.00010246,2]
[347979258,1736259052920,-500.0,0.00010246,2]
[347979259,1736259052928,-500.0,0.00010246,2]
[347979260,1736259052938,-713.54,0.00010246,2]
[347979261,1736259052947,-423.31969594,0.00010246,2]
[347979262,1736259052956,-500.0,0.00010246,2]
[347979263,1736259052966,-500.0,0.00010246,2]
[347979264,1736259052975,-500.0,0.00010246,2]
[347979265,1736259052985,-500.0,0.00010246,2]
[347979266,1736259052994,-500.0,0.00010246,2]
[347979267,1736259053003,-1611.37,0.00010246,2]
[347979268,1736259053012,-1215.28,0.00010246,2]
[347979269,1736259053021,-500.0,0.00010246,2]
[347979270,1736259053030,-500.0,0.00010246,2]
[347979271,1736259053040,-500.0,0.00010246,2]
[347979272,1736259053050,-786.04,0.00010246,2]
[347979273,1736259053059,-500.0,0.00010246,2]
[347979274,1736259053067,-500.0,0.00010246,2]
[347979275,1736259053076,-1224.53,0.00010246,2]
[347979276,1736259053088,-500.0,0.00010246,2]
[347979277,1736259053098,-500.0,0.00010246,2]
[347979278,1736259053108,-1683.27,0.00010246,2]
[347979279,1736259053117,-500.0,0.00010246,2]
[347979280,1736259053126,-500.0,0.00010246,2]
[347979281,1736259053135,-500.0,0.00010246,2]
[347979282,1736259053145,-500.0,0.00010246,2]
[347979283,1736259053155,-500.0,0.00010246,2]
[347979284,1736259053164,-1162.37,0.00010246,2]
[347979285,1736259053175,-500.0,0.00010246,2]
[347979286,1736259053184,-500.0,0.00010246,2]
[347979287,1736259053194,-700.53,0.00010246,2]
[347979288,1736259053204,-2097.44,0.00010247,2]
[347979289,1736259053214,-500.0,0.00010247,2]
[347979290,1736259053223,-1762.13,0.00010247,2]
[347979291,1736259053232,-500.0,0.00010247,2]
[347979292,1736259053242,-500.0,0.00010247,2]
[347979293,1736259053251,-500.0,0.00010247,2]
[347979294,1736259053261,-2072.97,0.00010247,2]
[347979295,1736259053270,-500.0,0.00010247,2]
[347979296,1736259053279,-500.0,0.00010247,2]
[347979297,1736259053289,-500.0,0.00010247,2]
[347979298,1736259053298,-500.0,0.00010247,2]
[347979299,1736259053307,-500.0,0.00010247,2]
[347979300,1736259053316,-1739.07,0.00010247,2]
[347979301,1736259053326,-500.0,0.00010247,2]
[347979302,1736259053338,-500.0,0.00010247,2]
[347979303,1736259053352,-526.9,0.00010247,2]
[347979304,1736259053361,-500.0,0.00010247,2]
[347979305,1736259053370,-500.0,0.00010247,2]
[347979306,1736259053381,-5711.78,0.00010247,2]
[347979307,1736259053391,-500.0,0.00010247,2]
[347979308,1736259053400,-556.57,0.00010247,2]
[347979309,1736259053409,-500.0,0.00010247,2]
[347979310,1736259053421,-500.0,0.00010247,2]
[347979311,1736259053431,-905.79,0.00010247,2]
[347979312,1736259053440,-2024.87,0.00010247,2]
[347979313,1736259053449,-500.0,0.00010247,2]
[347979314,1736259053459,-500.0,0.00010247,2]
[347979315,1736259053468,-500.0,0.00010247,2]
[347979316,1736259053477,-500.0,0.00010247,2]
[347979317,1736259053486,-684.18,0.00010247,2]
[347979318,1736259053496,-3304.34,0.00010247,2]
[347979319,1736259053505,-1665.02,0.00010247,2]
[347979320,1736259053514,-2019.9,0.00010247,2]
[347979321,1736259053523,-500.0,0.00010247,2]
[347979322,1736259053532,-829.4,0.00010247,2]
[347979323,1736259053541,-3244.82,0.00010247,2]
[347979324,1736259053551,-500.0,0.00010247,2]
[347979325,1736259053560,-1232.32,0.00010247,2]
[347979326,1736259053570,-835.84,0.00010247,2]
[347979327,1736259053579,-557.9,0.00010247,2]
[347979328,1736259053592,-1275.66,0.00010247,2]
[347979329,1736259053603,-760.29,0.00010247,2]
[347979330,1736259053612,-2719.27,0.00010247,2]
[347979331,1736259053621,-2971.79,0.00010247,2]
[347979332,1736259053630,-2932.38,0.00010247,2]
[347979333,1736259053640,-1714.17,0.00010247,2]
[347979334,1736259053649,-506.41,0.00010247,2]
[347979335,1736259053658,-150.0,0.00010257,2]
[347979336,1736259053668,-1552.68,0.00010272,2]
[347979337,1736259053677,-825.7,0.00010273,2]
[347979338,1736259053686,-1856.69,0.00010273,2]
[347979339,1736259053695,-500.0,0.00010273,2]
[347979340,1736259053704,-1067.63,0.00010273,2]
[347979341,1736259053713,-1317.9,0.00010273,2]
[347979342,1736259053723,-776.97,0.00010273,2]
[347979343,1736259053732,-2817.1,0.00010273,2]
[347979344,1736259053741,-10455.72,0.00010273,2]
[347979345,1736259053750,-2247.27,0.00010273,2]
[347979346,1736259053759,-3971.17,0.00010273,2]
[347979347,1736259053768,-1196.41,0.00010273,2]
[347979348,1736259053777,-5209.49,0.00010273,2]
[347979349,1736259053786,-1104.63,0.00010273,2]
[347979350,1736259053795,-500.0,0.00010273,2]
[347979351,1736259053805,-1530.86,0.00010273,2]
[347979352,1736259053813,-150.0,0.00010278,2]
[347979353,1736259053823,-167.44256142,0.00010279,2]
[347979354,1736259053832,-1552.68,0.00010314,2]
[347979355,1736259053846,-1552.68,0.00010315,2]
[347979356,1736259053855,-1491.33,0.00010315,2]
[347979357,1736259053864,-4602.92,0.00010315,2]
[347979358,1736259053873,-876.25,0.00010315,2]
[347979359,1736259053882,-12221.56,0.00010315,2]
[347979360,1736259053891,-2688.37,0.00010315,2]
[347979361,1736259053900,-500.0,0.00010315,2]
[347979362,1736259053910,-1414.4,0.00010315,2]
[347979363,1736259053919,-809.03,0.00010315,2]
[347979364,1736259053928,-150.49,0.00010316,2]
[347979365,1736259053938,-1552.68,0.00010317,2]
[347979366,1736259053947,-150.0,0.00010333,2]
[347979367,1736259053956,-150.0,0.00010333,2]
[347979368,1736259053966,-150.0,0.00010358,2]
[347979369,1736259053975,-150.0,0.0001037,2]
[347979370,1736259053984,-164.95613693,0.00010372,2]
[347979371,1736259053994,-150.0,0.00010372,2]
[347979372,1736259054003,-150.0,0.00010387,2]
[347979373,1736259054013,-167.44256142,0.00010417,2]
[347979374,1736259054023,-786.74,0.0001042,2]
[347979375,1736259054033,-150.0,0.00010442,2]
[347979376,1736259054042,-150.0,0.00010442,2]
[347979377,1736259054052,-150.0,0.00010463,2]
[347979378,1736259054062,-150.0,0.00010472,2]
[347979379,1736259054072,-150.0,0.00010496,2]
[347979380,1736259054083,-150.0,0.00010509,2]
[347979381,1736259054097,-150.0,0.00010514,2]
[347979382,1736259054107,-2394.12,0.00010517,2]
[347979383,1736259054117,-548.11,0.00010517,2]
[347979384,1736259054127,-5611.94,0.00010517,2]
[347979385,1736259054137,-1832.22,0.00010517,2]
[347979386,1736259054148,-8662.0,0.00010517,2]
[347979387,1736259054158,-4313.23,0.00010517,2]
[347979388,1736259054169,-1304.18,0.00010517,2]
[347979389,1736259054179,-1496.57,0.00010517,2]
[347979390,1736259054188,-2615.28,0.00010517,2]
[347979391,1736259054198,-792.6,0.00010517,2]
[347979392,1736259054208,-6729.29,0.00010517,2]
[347979393,1736259054218,-1467.83,0.00010517,2]
[347979394,1736259054227,-3559.03,0.00010517,2]
[347979395,1736259054237,-1524.71,0.00010517,2]
[347979396,1736259054246,-500.0,0.00010518,2]
[347979397,1736259054255,-2605.92,0.00010518,2]
[347979398,1736259054265,-500.0,0.00010518,2]
[347979399,1736259054274,-1353.29,0.00010518,2]
[347979400,1736259054479,-4908.13,0.00010518,2]
[347979401,1736259054488,-2057.28,0.00010518,2]
[347979402,1736259054498,-6112.9,0.00010518,2]
[347979403,1736259054508,-2837.53,0.00010518,2]
[347979404,1736259054517,-6178.46,0.00010518,2]
[347979405,1736259054527,-15856.59,0.00010518,2]
[347979406,1736259054536,-500.0,0.00010518,2]
[347979407,1736259054546,-1808.73,0.00010518,2]
[347979408,1736259054555,-2822.03,0.00010518,2]
[347979409,1736259054565,-1900.23,0.00010518,2]
[347979410,1736259054574,-5118.83,0.00010518,2]
[347979411,1736259054583,-1360.83,0.00010518,2]
[347979412,1736259054597,-9228.68,0.00010518,2]
[347979413,1736259054608,-1836.77,0.00010519,2]
[347979414,1736259054618,-1626.23,0.00010519,2]
[347979415,1736259054627,-1948.37,0.00010519,2]
[347979416,1736259054637,-1192.96,0.00010519,2]
[347979417,1736259054646,-782.96,0.00010519,2]
[347979418,1736259054655,-1060.88,0.00010519,2]
[347979419,1736259054665,-500.0,0.00010519,2]
[347979420,1736259054674,-500.0,0.00010519,2]
[347979421,1736259054684,-500.0,0.00010519,2]
[347979422,1736259054694,-671.58,0.00010519,2]
[347979423,1736259054703,-500.0,0.00010519,2]
[347979424,1736259054712,-1073.13,0.00010519,2]
[347979425,1736259054722,-548.21,0.00010519,2]
[347979426,1736259054731,-500.0,0.00010519,2]
[347979427,1736259054741,-510.25,0.00010519,2]
[347979428,1736259054750,-500.0,0.00010519,2]
[347979429,1736259054760,-850.43,0.00010519,2]
[347979430,1736259054769,-965.59,0.00010519,2]
[347979431,1736259054778,-759.35,0.00010519,2]
[347979432,1736259054787,-863.31,0.00010519,2]
[347979433,1736259054797,-500.0,0.00010519,2]
[347979434,1736259054807,-1341.0,0.00010519,2]
[347979435,1736259054816,-500.0,0.00010519,2]
[347979436,1736259054826,-500.0,0.00010519,2]
[347979437,1736259054839,-1664.94,0.00010519,2]
[347979438,1736259054849,-500.0,0.00010519,2]
[347979439,1736259054858,-602.93,0.00010519,2]
[347979440,1736259054868,-500.0,0.00010519,2]
[347979441,1736259054878,-500.0,0.00010519,2]
[347979442,1736259054887,-656.05,0.00010519,2]
[347979443,1736259054897,-500.0,0.00010519,2]
[347979444,1736259054906,-500.0,0.00010519,2]
[347979445,1736259054916,-500.0,0.00010519,2]
[347979446,1736259054926,-539.39,0.00010519,2]
[347979447,1736259054940,-500.0,0.00010519,2]
[347979448,1736259054950,-912.58,0.00010519,2]
[347979449,1736259054960,-500.0,0.00010519,2]
[347979450,1736259054970,-500.0,0.00010519,2]
[347979451,1736259054979,-500.0,0.00010519,2]
[347979452,1736259054989,-1968.77,0.00010519,2]
[347979453,1736259054999,-500.0,0.00010519,2]
[347979454,1736259055008,-591.69,0.00010519,2]
[347979455,1736259055017,-545.06,0.00010519,2]
[347979456,1736259055027,-870.76,0.00010519,2]
[347979457,1736259055038,-500.0,0.00010519,2]
[347979458,1736259055048,-500.0,0.00010519,2]
[347979459,1736259055058,-1245.34,0.00010519,2]
[347979460,1736259055068,-500.0,0.00010519,2]
[347979461,1736259055079,-500.0,0.00010519,2]
[347979462,1736259055094,-557.23,0.00010519,2]
[347979463,1736259055105,-1463.18,0.00010519,2]
[347979464,1736259055116,-732.97,0.00010519,2]
[347979465,1736259055126,-553.87,0.00010519,2]
[347979466,1736259055138,-500.0,0.00010519,2]
[347979467,1736259055149,-891.56,0.00010519,2]
[347979468,1736259055160,-535.41,0.00010519,2]
[347979469,1736259055171,-771.86,0.00010519,2]
[347979470,1736259055181,-500.0,0.00010519,2]
[347979471,1736259055191,-780.22,0.00010519,2]
[347979472,1736259055201,-1479.88,0.00010519,2]
[347979473,1736259055211,-164.504576,0.00010519,2]
[347979474,1736259055222,-500.0,0.00010519,2]
[347979475,1736259055232,-500.0,0.00010519,2]
[347979476,1736259055242,-1234.19,0.00010519,2]
[347979477,1736259055252,-711.26,0.00010519,2]
[347979478,1736259055262,-395.37373169,0.00010519,2]
[347979479,1736259055272,-500.0,0.00010519,2]
[347979480,1736259055282,-939.86,0.00010519,2]
[347979481,1736259055292,-500.0,0.00010519,2]
[347979482,1736259055301,-783.73,0.00010519,2]
[347979483,1736259055311,-780.52,0.00010519,2]
[347979484,1736259055321,-500.0,0.00010519,2]
[347979485,1736259055331,-500.0,0.00010519,2]
[347979486,1736259055348,-500.0,0.00010519,2]
[347979487,1736259055359,-500.0,0.00010519,2]
[347979488,1736259055369,-706.75,0.00010519,2]
[347979489,1736259055380,-500.0,0.00010519,2]
[347979490,1736259055389,-500.0,0.00010519,2]
[347979491,1736259055399,-235.26340025,0.00010519,2]
[347979492,1736259055409,-534.27,0.00010519,2]
[347979493,1736259055421,-155.360566,0.00010519,2]
[347979494,1736259055431,-500.0,0.00010519,2]
[347979495,1736259055441,-364.05441234,0.00010519,2]
[347979496,1736259055451,-1418.26,0.00010519,2]
[347979497,1736259055461,-617.44,0.00010519,2]
[347979498,1736259055471,-500.0,0.00010519,2]
[347979499,1736259055480,-500.0,0.00010519,2]
[347979500,1736259055490,-500.0,0.00010519,2]
[347979501,1736259055500,-500.0,0.00010519,2]
[347979502,1736259055510,-500.0,0.00010519,2]
[347979503,1736259055520,-557.13,0.00010519,2]
[347979504,1736259055530,-500.0,0.00010519,2]
[347979505,1736259055540,-500.0,0.00010519,2]
[347979506,1736259055549,-711.23,0.00010519,2]
[347979507,1736259055559,-1462.8,0.00010519,2]
[347979508,1736259055568,-500.0,0.00010519,2]
[347979509,1736259055578,-767.76,0.00010519,2]
[347979510,1736259055594,-1658.3,0.00010519,2]
[347979511,1736259055604,-500.0,0.00010519,2]
[347979512,1736259055614,-500.0,0.00010519,2]
[347979513,1736259055623,-500.0,0.00010519,2]
[347979514,1736259055632,-500.0,0.00010519,2]
[347979515,1736259055642,-500.0,0.00010519,2]
[347979516,1736259055652,-500.0,0.00010519,2]
[347979517,1736259055661,-1636.61,0.00010519,2]
[347979518,1736259055671,-668.09,0.00010519,2]
[347979519,1736259055681,-553.24,0.00010519,2]
[347979520,1736259055691,-500.0,0.00010519,2]
[347979521,1736259055700,-500.0,0.00010519,2]
[347979522,1736259055711,-515.48,0.00010519,2]
[347979523,1736259055721,-500.0,0.00010519,2]
[347979524,1736259055731,-1946.66,0.00010519,2]
[347979525,1736259055741,-1006.74,0.00010519,2]
[347979526,1736259055751,-500.0,0.00010519,2]
[347979527,1736259055761,-500.0,0.00010519,2]
[347979528,1736259055772,-848.01,0.00010519,2]
[347979529,1736259055782,-500.0,0.00010519,2]
[347979530,1736259055792,-500.0,0.00010519,2]
[347979531,1736259055801,-702.49,0.00010519,2]
[347979532,1736259055811,-500.0,0.00010519,2]
[347979533,1736259055821,-500.0,0.00010519,2]
[347979534,1736259055831,-500.0,0.00010519,2]
[347979535,1736259055845,-500.0,0.00010519,2]
[347979536,1736259055854,-1074.24,0.00010519,2]
[347979537,1736259055864,-520.03,0.00010519,2]
[347979538,1736259055874,-381.10321485,0.00010519,2]
[347979539,1736259055883,-3449.07,0.00010519,2]
[347979540,1736259055893,-500.0,0.00010519,2]
[347979541,1736259055903,-677.32,0.00010519,2]
[347979542,1736259055912,-500.0,0.00010519,2]
[347979543,1736259055922,-607.72031968,0.00010519,2]
[347979544,1736259055941,-500.0,0.00010519,2]
[347979545,1736259055959,-500.0,0.00010519,2]
[347979546,1736259055975,-500.0,0.00010519,2]
[347979547,1736259055992,-500.0,0.00010519,2]
[347979548,1736259056009,-622.67,0.00010519,2]
[347979549,1736259056025,-500.0,0.00010519,2]
[347979550,1736259056039,-500.0,0.00010519,2]
[347979551,1736259056055,-500.0,0.00010519,2]
[347979552,1736259056072,-500.0,0.00010519,2]
[347979553,1736259056091,-676.83,0.00010519,2]
[347979554,1736259056107,-500.0,0.00010519,2]
[347979555,1736259056123,-500.0,0.00010519,2]
[347979556,1736259056141,-500.0,0.00010519,2]
[347979557,1736259056158,-638.95,0.00010519,2]
[347979558,1736259056175,-1155.66,0.00010519,2]
[347979559,1736259056193,-500.0,0.00010519,2]
[347979560,1736259056207,-500.0,0.00010519,2]
[347979561,1736259056221,-500.0,0.00010519,2]
[347979562,1736259056239,-824.6,0.00010519,2]
[347979563,1736259056250,-500.0,0.00010519,2]
[347979564,1736259056265,-740.9,0.00010519,2]
[347979565,1736259056281,-5766.65,0.00010519,2]
[347979566,1736259056293,-500.0,0.00010519,2]
[347979567,1736259056306,-500.0,0.00010519,2]
[347979568,1736259056320,-500.0,0.00010519,2]
[347979569,1736259056337,-500.0,0.00010519,2]
[347979570,1736259056356,-1942.02,0.00010519,2]
[347979571,1736259056372,-500.0,0.00010519,2]
[347979572,1736259056388,-1204.75,0.00010519,2]
[347979573,1736259056409,-552.86,0.00010519,2]
[347979574,1736259056424,-500.0,0.00010519,2]
[347979575,1736259056440,-500.0,0.00010519,2]
[347979576,1736259056455,-500.0,0.00010519,2]
[347979577,1736259056469,-500.0,0.00010519,2]
[347979578,1736259056483,-956.66,0.00010519,2]
[347979579,1736259056497,-500.0,0.00010519,2]
[347979580,1736259056511,-500.0,0.00010519,2]
[347979581,1736259056525,-3282.74,0.00010519,2]
[347979582,1736259056539,-500.0,0.00010519,2]
[347979583,1736259056552,-500.0,0.00010519,2]
[347979584,1736259056566,-866.19,0.00010519,2]
[347979585,1736259056579,-1967.94,0.00010519,2]
[347979586,1736259056598,-871.33,0.00010519,2]
[347979587,1736259056613,-500.0,0.00010519,2]
[347979588,1736259056626,-500.0,0.00010519,2]
[347979589,1736259056640,-500.0,0.00010519,2]
[347979590,1736259056653,-575.81,0.00010519,2]
[347979591,1736259056667,-500.0,0.00010519,2]
[347979592,1736259056681,-690.01,0.00010519,2]
[347979593,1736259056695,-500.0,0.00010519,2]
[347979594,1736259056709,-744.22,0.00010519,2]
[347979595,1736259056723,-500.0,0.00010519,2]
[347979596,1736259056736,-500.0,0.00010519,2]
[347979597,1736259056749,-500.0,0.00010519,2]
[347979598,1736259056763,-2024.5,0.00010519,2]
[347979599,1736259056776,-2125.15,0.00010519,2]
[347979600,1736259056789,-1627.86,0.00010519,2]
[347979601,1736259056803,-500.0,0.00010519,2]
[347979602,1736259056816,-500.0,0.00010519,2]
[347979603,1736259056829,-500.0,0.00010519,2]
[347979604,1736259056847,-500.0,0.00010519,2]
[347979605,1736259056860,-807.23,0.00010519,2]
[347979606,1736259056874,-607.15,0.00010519,2]
[347979607,1736259056888,-1117.24,0.00010519,2]
[347979608,1736259056901,-547.71,0.00010519,2]
[347979609,1736259056915,-656.47,0.00010519,2]
[347979610,1736259056929,-617.15,0.00010519,2]
[347979611,1736259056941,-730.06,0.00010519,2]
[347979612,1736259056955,-500.0,0.00010519,2]
[347979613,1736259056969,-396.58979266,0.00010519,2]
[347979614,1736259056983,-500.0,0.00010519,2]
[347979615,1736259056996,-537.53,0.00010519,2]
[347979616,1736259057008,-500.0,0.00010519,2]
[347979617,1736259057021,-6218.61,0.00010519,2]
[347979618,1736259057034,-6218.61,0.00010519,2]
[347979619,1736259057048,-500.0,0.00010519,2]
[347979620,1736259057062,-500.0,0.00010519,2]
[347979621,1736259057077,-616.64,0.00010519,2]
[347979622,1736259057095,-540.79,0.00010519,2]